[Event "Titled Tuesday Blitz May 25 2021"]
[White "Timofeev, Artyom"]
[Black "Goltsev, Dmitry"]
[WhiteFideId "4140419"]
[BlackFideId "24176710"]
[WhiteElo "2582"]
[BlackElo "2366"]
[Result "1-0"]
[Round "08"]
[TimeControl "180+1"]
[Date "2021.05.25"]
[WhiteClock "0:00:34"]
[BlackClock "0:00:17"]

1. c4 {[%clk 0:03:00]}  e5 {[%clk 0:02:52]} 2. e3 {[%clk 0:03:00]}  Nf6 {[%clk 0:02:52]} 3. Nc3 {[%clk 0:02:59]}  c6 {[%clk 0:02:52]} 4. Nf3 {[%clk 0:02:56]}  d6 {[%clk 0:02:52]} 5. d4 {[%clk 0:02:52]}  exd4 {[%clk 0:02:51]} 6. Nxd4 {[%clk 0:02:51]}  Bd7 {[%clk 0:02:50]} 7. Be2 {[%clk 0:02:50]}  Be7 {[%clk 0:02:47]} 8. O-O {[%clk 0:02:49]}  Na6 {[%clk 0:02:48]} 9. b3 {[%clk 0:02:47]}  Nc5 {[%clk 0:02:47]} 10. Bb2 {[%clk 0:02:47]}  O-O {[%clk 0:02:48]} 11. Qc2 {[%clk 0:02:45]}  a5 {[%clk 0:02:47]} 12. h3 {[%clk 0:02:43]}  Re8 {[%clk 0:02:48]} 13. Rad1 {[%clk 0:02:42]}  Bf8 {[%clk 0:02:47]} 14. Bf3 {[%clk 0:02:41]}  Qc7 {[%clk 0:02:45]} 15. Rd2 {[%clk 0:02:40]}  Ne6 {[%clk 0:02:43]} 16. Nxe6 {[%clk 0:02:33]}  Bxe6 {[%clk 0:02:42]} 17. Rfd1 {[%clk 0:02:32]}  Rad8 {[%clk 0:02:40]} 18. Ne2 {[%clk 0:02:31]}  Nd7 {[%clk 0:02:39]} 19. Nf4 {[%clk 0:02:27]}  Nc5 {[%clk 0:02:37]} 20. Qc3 {[%clk 0:02:21]}  f6 {[%clk 0:02:30]} 21. Nxe6 {[%clk 0:02:10]}  Rxe6 {[%clk 0:02:31]} 22. Qc2 {[%clk 0:02:06]}  g6 {[%clk 0:02:26]} 23. a3 {[%clk 0:02:04]}  f5 {[%clk 0:02:23]} 24. b4 {[%clk 0:01:47]}  axb4 {[%clk 0:02:24]} 25. axb4 {[%clk 0:01:47]}  Ne4 {[%clk 0:02:25]} 26. Bxe4 {[%clk 0:01:47]}  Rxe4 {[%clk 0:02:25]} 27. Qc3 {[%clk 0:01:41]}  Bg7 {[%clk 0:02:03]} 28. Qxg7+ {[%clk 0:01:40]}  Qxg7 {[%clk 0:02:04]} 29. Bxg7 {[%clk 0:01:40]}  Kxg7 {[%clk 0:02:05]} 30. Rxd6 {[%clk 0:01:40]}  Rxd6 {[%clk 0:02:04]} 31. Rxd6 {[%clk 0:01:39]}  Rxc4 {[%clk 0:02:04]} 32. Rd7+ {[%clk 0:01:40]}  Kh6 {[%clk 0:02:04]} 33. Rxb7 {[%clk 0:01:40]}  Rc1+ {[%clk 0:02:01]} 34. Kh2 {[%clk 0:01:39]}  Rb1 {[%clk 0:02:02]} 35. Rb6 {[%clk 0:01:35]}  Rb2 {[%clk 0:02:01]} 36. Kg3 {[%clk 0:01:35]}  Kg5 {[%clk 0:02:00]} 37. h4+ {[%clk 0:01:35]}  Kh5 {[%clk 0:01:58]} 38. f3 {[%clk 0:01:25]}  Rb3 {[%clk 0:01:52]} 39. Rxc6 {[%clk 0:01:24]}  Rxb4 {[%clk 0:01:50]} 40. Rc5 {[%clk 0:01:23]}  Kh6 {[%clk 0:01:49]} 41. Rc7 {[%clk 0:01:16]}  Ra4 {[%clk 0:01:45]} 42. Re7 {[%clk 0:01:15]}  Rb4 {[%clk 0:01:42]} 43. e4 {[%clk 0:01:15]}  fxe4 {[%clk 0:01:43]} 44. fxe4 {[%clk 0:01:15]}  Ra4 {[%clk 0:01:42]} 45. Kg4 {[%clk 0:01:14]}  Ra6 {[%clk 0:01:36]} 46. Kf4 {[%clk 0:01:10]}  Rf6+ {[%clk 0:01:34]} 47. Ke5 {[%clk 0:01:10]}  Ra6 {[%clk 0:01:29]} 48. g4 {[%clk 0:01:10]}  g5 {[%clk 0:01:26]} 49. h5 {[%clk 0:00:44]}  Ra5+ {[%clk 0:00:56]} 50. Kf6 {[%clk 0:00:44]}  Ra4 {[%clk 0:00:53]} 51. Kf5 {[%clk 0:00:44]}  Ra5+ {[%clk 0:00:51]} 52. Re5 {[%clk 0:00:44]}  Ra1 {[%clk 0:00:49]} 53. Re6+ {[%clk 0:00:44]}  Kg7 {[%clk 0:00:45]} 54. Kxg5 {[%clk 0:00:43]}  Re1 {[%clk 0:00:42]} 55. Re7+ {[%clk 0:00:40]}  Kf8 {[%clk 0:00:40]} 56. Rxh7 {[%clk 0:00:40]}  Rxe4 {[%clk 0:00:38]} 57. Ra7 {[%clk 0:00:40]}  Kg8 {[%clk 0:00:34]} 58. Kf5 {[%clk 0:00:36]}  Rc4 {[%clk 0:00:32]} 59. Kg5 {[%clk 0:00:36]}  Rc5+ {[%clk 0:00:30]} 60. Kh4 {[%clk 0:00:36]}  Rb5 {[%clk 0:00:29]} 61. h6 {[%clk 0:00:36]}  Kh8 {[%clk 0:00:26]} 62. g5 {[%clk 0:00:35]}  Rb6 {[%clk 0:00:25]} 63. Kh5 {[%clk 0:00:36]}  Rc6 {[%clk 0:00:23]} 64. Ra8+ {[%clk 0:00:35]}  Kh7 {[%clk 0:00:16]} 65. g6+ {[%clk 0:00:35]}  Rxg6 {[%clk 0:00:16]} 66. Ra7+ {[%clk 0:00:35]}  Rg7 {[%clk 0:00:16]} 67. Rxg7+ {[%clk 0:00:34]}  Kh8 {[%clk 0:00:17]} 68. Ra7 {[%clk 0:00:34]} 1-0


[Site "https://www.chess.com"]

[Event "Titled Tuesday Blitz May 25 2021"]
[White "Tronenkovs, Valdis"]
[Black "Bodnaruk, Anastasia"]
[WhiteFideId "11601558"]
[BlackFideId "4181751"]
[WhiteElo "2232"]
[BlackElo "2393"]
[Result "1-0"]
[Round "08"]
[TimeControl "180+1"]
[Date "2021.05.25"]
[WhiteClock "0:00:05"]
[BlackClock "0:00:01"]

1. e4 {[%clk 0:03:00]}  c5 {[%clk 0:02:59]} 2. Ne2 {[%clk 0:03:00]}  d6 {[%clk 0:02:57]} 3. g3 {[%clk 0:03:00]}  d5 {[%clk 0:02:58]} 4. Bg2 {[%clk 0:02:58]}  dxe4 {[%clk 0:02:57]} 5. Nbc3 {[%clk 0:02:59]}  Nf6 {[%clk 0:02:54]} 6. Nxe4 {[%clk 0:02:57]}  Nxe4 {[%clk 0:02:53]} 7. Bxe4 {[%clk 0:02:58]}  g6 {[%clk 0:02:53]} 8. b4 {[%clk 0:02:33]}  Bg7 {[%clk 0:02:39]} 9. Rb1 {[%clk 0:02:33]}  cxb4 {[%clk 0:02:35]} 10. Rxb4 {[%clk 0:02:29]}  Nc6 {[%clk 0:02:34]} 11. Rb1 {[%clk 0:02:07]}  O-O {[%clk 0:02:28]} 12. O-O {[%clk 0:02:05]}  Bh3 {[%clk 0:02:27]} 13. Re1 {[%clk 0:02:05]}  e5 {[%clk 0:02:20]} 14. Rxb7 {[%clk 0:01:56]}  Qc8 {[%clk 0:02:20]} 15. Rb3 {[%clk 0:01:46]}  Qd7 {[%clk 0:02:01]} 16. Rd3 {[%clk 0:01:21]}  Qe6 {[%clk 0:01:51]} 17. Rc3 {[%clk 0:00:37]}  Rac8 {[%clk 0:01:49]} 18. Bxc6 {[%clk 0:00:21]}  Rxc6 {[%clk 0:01:49]} 19. Nf4 {[%clk 0:00:18]}  exf4 {[%clk 0:01:22]} 20. Rxe6 {[%clk 0:00:16]}  Rxe6 {[%clk 0:01:22]} 21. gxf4 {[%clk 0:00:12]}  Bxc3 {[%clk 0:01:21]} 22. dxc3 {[%clk 0:00:13]}  Rfe8 {[%clk 0:01:21]} 23. Be3 {[%clk 0:00:13]}  g5 {[%clk 0:01:13]} 24. Qf3 {[%clk 0:00:11]}  g4 {[%clk 0:01:09]} 25. Qd5 {[%clk 0:00:10]}  Rb8 {[%clk 0:00:58]} 26. Qd1 {[%clk 0:00:06]}  Rd6 {[%clk 0:00:55]} 27. Bd4 {[%clk 0:00:04]}  Re8 {[%clk 0:00:43]} 28. f3 {[%clk 0:00:04]}  Rde6 {[%clk 0:00:38]} 29. Kf2 {[%clk 0:00:03]}  h5 {[%clk 0:00:34]} 30. f5 {[%clk 0:00:03]}  Re1 {[%clk 0:00:18]} 31. Qd2 {[%clk 0:00:02]}  Rf1+ {[%clk 0:00:11]} 32. Kg3 {[%clk 0:00:02]}  Rxf3+ {[%clk 0:00:11]} 33. Kh4 {[%clk 0:00:02]}  Rxf5 {[%clk 0:00:12]} 34. Qh6 {[%clk 0:00:02]}  Ree5 {[%clk 0:00:04]} 35. Bxe5 {[%clk 0:00:02]}  Rxe5 {[%clk 0:00:04]} 36. Qf6 {[%clk 0:00:03]}  Re6 {[%clk 0:00:04]} 37. Qg5+ {[%clk 0:00:03]}  Rg6 {[%clk 0:00:05]} 38. Qxh5 {[%clk 0:00:04]}  Kg7 {[%clk 0:00:05]} 39. Kg3 {[%clk 0:00:05]}  Re6 {[%clk 0:00:03]} 40. Qg5+ {[%clk 0:00:05]}  Rg6 {[%clk 0:00:02]} 41. Qf4 {[%clk 0:00:05]}  Rf6 {[%clk 0:00:03]} 42. Qe5 {[%clk 0:00:05]}  Kg6 {[%clk 0:00:03]} 43. Kh4 {[%clk 0:00:06]}  Rf3 {[%clk 0:00:02]} 44. Qg5+ {[%clk 0:00:06]}  Kh7 {[%clk 0:00:01]} 45. Qh5+ {[%clk 0:00:06]}  Kg7 {[%clk 0:00:02]} 46. Qg5+ {[%clk 0:00:06]}  Kh7 {[%clk 0:00:02]} 47. c4 {[%clk 0:00:05]}  f6 {[%clk 0:00:02]} 48. Qh5+ {[%clk 0:00:05]}  Kg7 {[%clk 0:00:02]} 49. Qe8 {[%clk 0:00:05]}  Rf5 {[%clk 0:00:02]} 50. Kg3 {[%clk 0:00:05]}  Rf3+ {[%clk 0:00:02]} 51. Kh4 {[%clk 0:00:05]}  Rf5 {[%clk 0:00:02]} 52. Qe7+ {[%clk 0:00:05]}  Kg6 {[%clk 0:00:02]} 53. c5 {[%clk 0:00:05]}  Re5 {[%clk 0:00:02]} 54. Qd7 {[%clk 0:00:05]}  Rf5 {[%clk 0:00:02]} 55. Qe8+ {[%clk 0:00:05]}  Kg7 {[%clk 0:00:01]} 56. c6 {[%clk 0:00:05]}  Re5 {[%clk 0:00:01]} 57. Qd7+ {[%clk 0:00:05]}  Kg6 {[%clk 0:00:01]} 58. c7 {[%clk 0:00:06]}  g3 {[%clk 0:00:01]} 59. Qxh3 {[%clk 0:00:05]} 1-0


[Site "https://www.chess.com"]

[Event "Titled Tuesday Blitz May 25 2021"]
[White "Vaidya, Atulya"]
[Black "Starozhilov, Leonid"]
[WhiteFideId "2047713"]
[BlackFideId "14106752"]
[WhiteElo "2469"]
[BlackElo "2720"]
[Result "0-1"]
[Round "08"]
[TimeControl "180+1"]
[Date "2021.05.25"]
[WhiteClock "0:00:17"]
[BlackClock "0:00:11"]

1. d4 {[%clk 0:03:00]}  Nf6 {[%clk 0:02:59]} 2. c4 {[%clk 0:03:00]}  g6 {[%clk 0:02:59]} 3. Nc3 {[%clk 0:02:59]}  d6 {[%clk 0:02:59]} 4. e4 {[%clk 0:02:59]}  Bg7 {[%clk 0:03:00]} 5. Be2 {[%clk 0:02:57]}  O-O {[%clk 0:02:54]} 6. Nf3 {[%clk 0:02:57]}  Bg4 {[%clk 0:02:54]} 7. Qb3 {[%clk 0:02:56]}  Bxf3 {[%clk 0:02:49]} 8. Bxf3 {[%clk 0:02:56]}  Nc6 {[%clk 0:02:48]} 9. Be3 {[%clk 0:02:54]}  e5 {[%clk 0:02:40]} 10. d5 {[%clk 0:02:49]}  Nd4 {[%clk 0:02:39]} 11. Bxd4 {[%clk 0:02:49]}  exd4 {[%clk 0:02:40]} 12. Ne2 {[%clk 0:02:49]}  Re8 {[%clk 0:02:38]} 13. Qd3 {[%clk 0:02:42]}  Nd7 {[%clk 0:02:31]} 14. O-O {[%clk 0:02:42]}  Nc5 {[%clk 0:02:31]} 15. Qd2 {[%clk 0:02:32]}  Nxe4 {[%clk 0:02:28]} 16. Bxe4 {[%clk 0:02:33]}  Rxe4 {[%clk 0:02:28]} 17. Ng3 {[%clk 0:02:33]}  Re8 {[%clk 0:02:21]} 18. Rfe1 {[%clk 0:02:32]}  Qd7 {[%clk 0:02:15]} 19. h3 {[%clk 0:02:30]}  c5 {[%clk 0:02:12]} 20. dxc6 {[%clk 0:02:14]}  bxc6 {[%clk 0:02:11]} 21. b4 {[%clk 0:02:13]}  h5 {[%clk 0:01:45]} 22. a4 {[%clk 0:02:03]}  a6 {[%clk 0:01:32]} 23. Ne4 {[%clk 0:01:35]}  Re5 {[%clk 0:01:24]} 24. Qxd4 {[%clk 0:00:48]}  Re6 {[%clk 0:01:23]} 25. Qd3 {[%clk 0:00:40]}  Rae8 {[%clk 0:01:14]} 26. Kh2 {[%clk 0:00:17]}  Qe7 {[%clk 0:00:47]} 27. Nxd6 {[%clk 0:00:09]}  Rxe1 {[%clk 0:00:29]} 28. Rxe1 {[%clk 0:00:09]}  Qxe1 {[%clk 0:00:29]} 29. Nxe8 {[%clk 0:00:10]}  Qxe8 {[%clk 0:00:29]} 30. b5 {[%clk 0:00:10]}  axb5 {[%clk 0:00:28]} 31. axb5 {[%clk 0:00:10]}  cxb5 {[%clk 0:00:26]} 32. cxb5 {[%clk 0:00:11]}  h4 {[%clk 0:00:25]} 33. Qd5 {[%clk 0:00:10]}  Qe5+ {[%clk 0:00:23]} 34. Qxe5 {[%clk 0:00:11]}  Bxe5+ {[%clk 0:00:24]} 35. g3 {[%clk 0:00:11]}  Kf8 {[%clk 0:00:22]} 36. Kg2 {[%clk 0:00:11]}  Bf6 {[%clk 0:00:22]} 37. Kf3 {[%clk 0:00:11]}  Ke7 {[%clk 0:00:22]} 38. Kg4 {[%clk 0:00:11]}  hxg3 {[%clk 0:00:22]} 39. fxg3 {[%clk 0:00:12]}  Be5 {[%clk 0:00:20]} 40. h4 {[%clk 0:00:13]}  Kf6 {[%clk 0:00:10]} 41. Kf3 {[%clk 0:00:12]}  Bb8 {[%clk 0:00:09]} 42. g4 {[%clk 0:00:13]}  Ke5 {[%clk 0:00:08]} 43. h5 {[%clk 0:00:12]}  gxh5 {[%clk 0:00:08]} 44. gxh5 {[%clk 0:00:13]}  Kf5 {[%clk 0:00:08]} 45. h6 {[%clk 0:00:11]}  Kg6 {[%clk 0:00:09]} 46. h7 {[%clk 0:00:12]}  Kxh7 {[%clk 0:00:08]} 47. Kg4 {[%clk 0:00:13]}  Kg6 {[%clk 0:00:09]} 48. Kf3 {[%clk 0:00:14]}  f5 {[%clk 0:00:09]} 49. Kg2 {[%clk 0:00:14]}  Kg5 {[%clk 0:00:09]} 50. Kf3 {[%clk 0:00:15]}  f4 {[%clk 0:00:09]} 51. Kg2 {[%clk 0:00:16]}  Kg4 {[%clk 0:00:09]} 52. Kf2 {[%clk 0:00:16]}  f3 {[%clk 0:00:10]} 53. Kg1 {[%clk 0:00:17]}  Kg3 {[%clk 0:00:11]} 54. Kf1 {[%clk 0:00:17]}  Ba7 {[%clk 0:00:10]} 55. b6 {[%clk 0:00:16]}  Bxb6 {[%clk 0:00:11]} 56. Ke1 {[%clk 0:00:17]}  Kg2 {[%clk 0:00:11]} 0-1


[Site "https://www.chess.com"]

[Event "Titled Tuesday Blitz May 25 2021"]
[White "Vaishali, Rameshbabu"]
[Black "Kamsky, Gata"]
[WhiteFideId "5091756"]
[BlackFideId "2000024"]
[WhiteElo "2313"]
[BlackElo "2644"]
[Result "0-1"]
[Round "08"]
[TimeControl "180+1"]
[Date "2021.05.25"]
[WhiteClock "0:00:04"]
[BlackClock "0:00:47"]

1. e4 {[%clk 0:03:00]}  c5 {[%clk 0:02:59]} 2. Nf3 {[%clk 0:02:59]}  e6 {[%clk 0:02:57]} 3. d4 {[%clk 0:02:58]}  cxd4 {[%clk 0:02:57]} 4. Nxd4 {[%clk 0:02:59]}  a6 {[%clk 0:02:56]} 5. Be2 {[%clk 0:02:59]}  Nf6 {[%clk 0:02:54]} 6. Nc3 {[%clk 0:02:59]}  d6 {[%clk 0:02:54]} 7. O-O {[%clk 0:02:59]}  b5 {[%clk 0:02:52]} 8. Bf3 {[%clk 0:02:38]}  e5 {[%clk 0:02:35]} 9. Nf5 {[%clk 0:02:30]}  g6 {[%clk 0:02:08]} 10. Nh6 {[%clk 0:02:27]}  Be6 {[%clk 0:02:01]} 11. Bg5 {[%clk 0:02:24]}  Nbd7 {[%clk 0:01:57]} 12. Qd2 {[%clk 0:02:12]}  Be7 {[%clk 0:01:55]} 13. h4 {[%clk 0:02:02]}  Rc8 {[%clk 0:01:51]} 14. a4 {[%clk 0:01:47]}  b4 {[%clk 0:01:47]} 15. Nd5 {[%clk 0:01:47]}  Bxd5 {[%clk 0:01:44]} 16. exd5 {[%clk 0:01:47]}  a5 {[%clk 0:01:39]} 17. Rfe1 {[%clk 0:01:40]}  Kf8 {[%clk 0:01:37]} 18. Ng4 {[%clk 0:01:14]}  Nxg4 {[%clk 0:01:29]} 19. Bxg4 {[%clk 0:01:14]}  f5 {[%clk 0:01:22]} 20. Be2 {[%clk 0:01:04]}  Bxg5 {[%clk 0:01:21]} 21. hxg5 {[%clk 0:01:02]}  h6 {[%clk 0:01:21]} 22. gxh6 {[%clk 0:00:32]}  Qh4 {[%clk 0:01:20]} 23. g3 {[%clk 0:00:32]}  Qxh6 {[%clk 0:01:19]} 24. Qxh6+ {[%clk 0:00:32]}  Rxh6 {[%clk 0:01:19]} 25. Bb5 {[%clk 0:00:33]}  Nc5 {[%clk 0:01:16]} 26. Bc6 {[%clk 0:00:31]}  g5 {[%clk 0:01:12]} 27. c3 {[%clk 0:00:23]}  b3 {[%clk 0:01:07]} 28. Rad1 {[%clk 0:00:22]}  Kf7 {[%clk 0:01:04]} 29. Kf1 {[%clk 0:00:19]}  Rch8 {[%clk 0:01:02]} 30. Ke2 {[%clk 0:00:19]}  Rh2 {[%clk 0:01:02]} 31. Ke3 {[%clk 0:00:12]}  f4+ {[%clk 0:01:01]} 32. Kf3 {[%clk 0:00:11]}  g4+ {[%clk 0:00:58]} 33. Kxg4 {[%clk 0:00:10]}  Rxf2 {[%clk 0:00:57]} 34. Rh1 {[%clk 0:00:09]}  Rg8+ {[%clk 0:00:57]} 35. Kh5 {[%clk 0:00:06]}  Rxg3 {[%clk 0:00:55]} 36. Rdg1 {[%clk 0:00:06]}  Ne4 {[%clk 0:00:53]} 37. Kh6 {[%clk 0:00:05]}  Rxb2 {[%clk 0:00:52]} 38. Rxg3 {[%clk 0:00:04]}  Nxg3 {[%clk 0:00:51]} 39. Rh3 {[%clk 0:00:04]}  Rc2 {[%clk 0:00:49]} 40. Bd7 {[%clk 0:00:03]}  Kf6 {[%clk 0:00:48]} 41. Be6 {[%clk 0:00:04]}  b2 {[%clk 0:00:47]} 0-1


[Site "https://www.chess.com"]

[Event "Titled Tuesday Blitz May 25 2021"]
[White "Wagh Suyog"]
[Black "Koellner, Ruben Gideon"]
[WhiteFideId "25071688"]
[BlackFideId "12993093"]
[WhiteElo "2644"]
[BlackElo "2513"]
[Result "1-0"]
[Round "08"]
[TimeControl "180+1"]
[Date "2021.05.25"]
[WhiteClock "0:00:37"]
[BlackClock "0:00:02"]

1. Nf3 {[%clk 0:02:59]}  d6 {[%clk 0:03:00]} 2. g3 {[%clk 0:02:56]}  Nf6 {[%clk 0:02:55]} 3. b4 {[%clk 0:02:38]}  g6 {[%clk 0:02:56]} 4. Bb2 {[%clk 0:02:38]}  Bg7 {[%clk 0:02:56]} 5. Bg2 {[%clk 0:02:35]}  O-O {[%clk 0:02:54]} 6. d4 {[%clk 0:02:35]}  a5 {[%clk 0:02:52]} 7. b5 {[%clk 0:02:35]}  c6 {[%clk 0:02:49]} 8. a4 {[%clk 0:02:34]}  Nbd7 {[%clk 0:02:45]} 9. c4 {[%clk 0:02:34]}  cxb5 {[%clk 0:02:38]} 10. axb5 {[%clk 0:02:31]}  Qc7 {[%clk 0:02:35]} 11. Nbd2 {[%clk 0:02:26]}  Nb6 {[%clk 0:02:31]} 12. Rc1 {[%clk 0:02:24]}  a4 {[%clk 0:02:28]} 13. Ba3 {[%clk 0:02:23]}  Rd8 {[%clk 0:02:04]} 14. O-O {[%clk 0:02:08]}  e5 {[%clk 0:01:55]} 15. e3 {[%clk 0:02:08]}  Bf5 {[%clk 0:01:27]} 16. Re1 {[%clk 0:02:08]}  Rac8 {[%clk 0:01:16]} 17. e4 {[%clk 0:01:53]}  Bg4 {[%clk 0:01:00]} 18. c5 {[%clk 0:01:33]}  dxc5 {[%clk 0:00:50]} 19. dxc5 {[%clk 0:01:31]}  Nbd7 {[%clk 0:00:33]} 20. Qxa4 {[%clk 0:01:26]}  Ra8 {[%clk 0:00:27]} 21. Qb3 {[%clk 0:01:26]}  Qa5 {[%clk 0:00:22]} 22. Bb2 {[%clk 0:01:16]}  Be6 {[%clk 0:00:18]} 23. Nc4 {[%clk 0:01:02]}  Qa2 {[%clk 0:00:10]} 24. Qxa2 {[%clk 0:00:53]}  Rxa2 {[%clk 0:00:10]} 25. Bxe5 {[%clk 0:00:53]}  Nxc5 {[%clk 0:00:06]} 26. Nd6 {[%clk 0:00:50]}  Nd3 {[%clk 0:00:05]} 27. Nxb7 {[%clk 0:00:49]}  Re8 {[%clk 0:00:02]} 28. Nd6 {[%clk 0:00:46]}  Rd8 {[%clk 0:00:02]} 29. b6 {[%clk 0:00:40]}  Nxe1 {[%clk 0:00:02]} 30. Nxe1 {[%clk 0:00:39]}  Nd7 {[%clk 0:00:02]} 31. Bxg7 {[%clk 0:00:38]}  Kxg7 {[%clk 0:00:03]} 32. b7 {[%clk 0:00:38]}  Nb8 {[%clk 0:00:03]} 33. e5 {[%clk 0:00:37]}  Rb2 {[%clk 0:00:03]} 34. Nd3 {[%clk 0:00:36]}  Rd2 {[%clk 0:00:03]} 35. Nc5 {[%clk 0:00:36]}  R2xd6 {[%clk 0:00:03]} 36. exd6 {[%clk 0:00:36]}  Rxd6 {[%clk 0:00:04]} 37. Nxe6+ {[%clk 0:00:37]}  Rxe6 {[%clk 0:00:02]} 38. Rc8 {[%clk 0:00:38]}  Re1+ {[%clk 0:00:02]} 39. Bf1 {[%clk 0:00:38]}  Nd7 {[%clk 0:00:02]} 40. Rd8 {[%clk 0:00:37]} 1-0


[Site "https://www.chess.com"]

[Event "Titled Tuesday Blitz May 25 2021"]
[White "Wieczorek, Oskar"]
[Black "Zhigalko, Sergei"]
[WhiteFideId "1133950"]
[BlackFideId "13502956"]
[WhiteElo "2258"]
[BlackElo "2662"]
[Result "0-1"]
[Round "08"]
[TimeControl "180+1"]
[Date "2021.05.25"]
[WhiteClock "0:00:05"]
[BlackClock "0:00:03"]

1. e4 {[%clk 0:03:00]}  c5 {[%clk 0:02:59]} 2. Nf3 {[%clk 0:03:00]}  Nc6 {[%clk 0:02:57]} 3. b4 {[%clk 0:03:01]}  Nxb4 {[%clk 0:02:55]} 4. c3 {[%clk 0:03:00]}  Nc6 {[%clk 0:02:55]} 5. d4 {[%clk 0:03:01]}  d5 {[%clk 0:02:55]} 6. exd5 {[%clk 0:03:00]}  Qxd5 {[%clk 0:02:55]} 7. Na3 {[%clk 0:03:01]}  Bg4 {[%clk 0:02:54]} 8. Be3 {[%clk 0:02:53]}  cxd4 {[%clk 0:02:51]} 9. Nb5 {[%clk 0:02:20]}  O-O-O {[%clk 0:02:41]} 10. cxd4 {[%clk 0:02:04]}  e5 {[%clk 0:02:32]} 11. Rc1 {[%clk 0:00:43]}  Bb4+ {[%clk 0:01:47]} 12. Bd2 {[%clk 0:00:39]}  Kb8 {[%clk 0:01:24]} 13. Bxb4 {[%clk 0:00:28]}  Nxb4 {[%clk 0:01:25]} 14. Qa4 {[%clk 0:00:28]}  Qe4+ {[%clk 0:00:25]} 15. Be2 {[%clk 0:00:26]}  Na6 {[%clk 0:00:13]} 16. Nc3 {[%clk 0:00:23]}  Qf4 {[%clk 0:00:09]} 17. Rb1 {[%clk 0:00:18]}  Nc7 {[%clk 0:00:03]} 18. Kf1 {[%clk 0:00:10]}  exd4 {[%clk 0:00:03]} 19. Nb5 {[%clk 0:00:07]}  Nxb5 {[%clk 0:00:03]} 20. Qxb5 {[%clk 0:00:08]}  Bc8 {[%clk 0:00:03]} 21. g3 {[%clk 0:00:05]}  Qd6 {[%clk 0:00:02]} 22. Bd3 {[%clk 0:00:05]}  Ne7 {[%clk 0:00:02]} 23. Kg2 {[%clk 0:00:05]}  Qc6 {[%clk 0:00:02]} 24. Qb2 {[%clk 0:00:05]}  Bg4 {[%clk 0:00:02]} 25. Be2 {[%clk 0:00:03]}  d3 {[%clk 0:00:02]} 26. Rhc1 {[%clk 0:00:04]}  Qe4 {[%clk 0:00:01]} 27. Qc3 {[%clk 0:00:03]}  dxe2 {[%clk 0:00:01]} 28. Qc7+ {[%clk 0:00:03]}  Ka8 {[%clk 0:00:01]} 29. Kg1 {[%clk 0:00:04]}  Bxf3 {[%clk 0:00:02]} 30. Qxe7 {[%clk 0:00:04]}  Rd1+ {[%clk 0:00:02]} 31. Rxd1 {[%clk 0:00:04]}  exd1=Q+ {[%clk 0:00:03]} 32. Rxd1 {[%clk 0:00:05]}  Qxe7 {[%clk 0:00:03]} 0-1


[Site "https://www.chess.com"]